bitfinex/quotes_ETHUSD_20211001
["timestamp","ask_amount","ask_price","bid_price","bid_amount"]
[1633122333504,0.003,3291.5,3290.9,0.84735571]
[1633122334706,0.003,3291.5,3291.1,1.16249788]
[1633122335105,0.003,3291.5,3290.9,0.84735571]
[1633122335308,0.003,3291.5,3291.2,4.55629]
[1633122335589,0.02885269,3292.5,3292.4,0.2398844]
[1633122335809,3.55809804,3293.0,3292.7,2.57826543]
[1633122335810,0.003,3293.0,3292.7,2.57826543]
[1633122336006,2.46,3293.1,3292.8,3.82247727]
[1633122336209,2.46,3293.1,3292.8,5.18847727]
[1633122336406,2.46,3293.1,3292.9,3.00285195]
[1633122336610,0.003,3293.5,3293.1,1.8209643]
[1633122336806,0.003,3293.5,3293.4,12.56295]
[1633122337009,7.373,3294.5,3293.6,10.3]
[1633122337205,7.373,3294.5,3293.9,4.567]
[1633122337405,7.373,3294.5,3294.1,0.91388038]
[1633122337406,9.833,3294.5,3294.1,0.91388038]
[1633122337606,9.833,3294.5,3294.3,4.567]
[1633122337806,9.833,3294.5,3294.4,0.183]
[1633122338404,9.833,3294.5,3294.4,1.04373936]
[1633122338810,9.833,3294.5,3294.4,5.59482936]
[1633122339011,9.833,3294.5,3294.4,4.73409]
[1633122339607,0.003,3294.5,3294.4,4.73519685]
[1633122340006,0.003,3294.5,3294.4,5.59477904]
[1633122340609,0.003,3294.5,3294.4,4.73519685]
[1633122340812,0.003,3294.5,3294.4,0.18410685]
[1633122341607,1.8473979,3294.5,3294.4,0.18410685]
[1633122341807,0.76072546,3294.5,3294.4,0.46173848]
[1633122342006,0.003,3294.5,3294.4,0.46173848]
[1633122342806,0.88520074,3294.5,3294.4,0.27873848]
[1633122343007,0.003,3294.5,3294.4,3.78285415]
[1633122343206,0.003,3294.5,3294.4,0.46173848]
[1633122343608,0.003,3294.5,3294.0,2.56784648]
[1633122343807,0.003,3294.5,3294.1,0.183]
[1633122344205,0.003,3294.5,3294.4,1.01630737]
[1633122344407,0.003,3294.5,3294.4,1.19930737]
[1633122347211,0.003,3294.5,3294.4,1.18070737]
[1633122347413,0.003,3294.5,3294.4,1.31952318]
[1633122350010,0.003,3294.5,3294.4,0.32181581]
[1633122350212,0.003,3294.5,3294.4,0.32279967]
[1633122350411,0.003,3294.5,3294.4,0.29051971]
[1633122352211,0.003,3294.5,3294.4,1.21674704]
[1633122352411,0.003,3294.5,3294.4,0.29051971]
[1633122353012,0.003,3294.5,3294.4,0.32279967]
[1633122353214,0.003,3294.5,3294.2,2.06798217]
[1633122353412,1.85691905,3294.5,3294.3,0.183]
[1633122354074,1.85691905,3294.5,3294.0,0.183]
[1633122354674,0.80404395,3293.9,3293.3,0.003]
[1633122354874,2.81232398,3294.5,3293.6,4.55301]
[1633122355074,0.003,3294.5,3293.6,4.55301]
[1633122355274,0.02448585,3294.4,3293.4,2.7318035]
[1633122355485,0.21682969,3293.8,3293.3,0.003]
[1633122355674,0.21682969,3293.8,3293.5,0.003]
[1633122356074,0.21682969,3293.8,3293.6,4.5529]
[1633122356480,0.21682969,3293.8,3293.5,0.003]
[1633122356481,0.21682969,3293.8,3293.4,2.7317366]
[1633122356878,0.21682969,3293.8,3293.5,0.003]
[1633122357277,0.21682969,3293.8,3293.7,0.89284706]
[1633122357876,0.21682969,3293.8,3293.5,0.003]
[1633122358078,0.21682969,3293.8,3293.6,4.55283]
[1633122358278,1.02476863,3294.1,3293.6,4.62250237]
[1633122358479,1.02476863,3294.1,3293.6,0.06967237]
[1633122358879,0.93844737,3294.0,3293.6,0.06967237]
[1633122359083,5.49243737,3294.0,3293.6,0.06967237]
[1633122360679,5.49243737,3294.0,3293.7,0.00096676]
[1633122360880,5.70929156,3294.0,3293.7,0.00096676]
[1633122361082,1.15530156,3294.0,3293.7,0.00096676]
[1633122362681,0.21685419,3294.0,3293.7,0.00096676]
[1633122362881,0.21685419,3294.0,3293.4,0.19194728]
[1633122363086,0.21685419,3294.0,3293.4,0.37494728]
[1633122363283,0.21985419,3294.0,3293.6,4.5529]
[1633122363882,0.003,3294.0,3293.7,0.06960625]
[1633122366487,0.21986652,3294.0,3293.4,9.48026728]
[1633122366893,0.21986652,3294.0,3293.7,4.55273]
[1633122367687,0.21986652,3294.0,3293.4,9.48026728]
[1633122367887,1.05905437,3293.7,3293.4,9.48026728]
[1633122368487,1.05905437,3293.7,3293.5,4.55327]
[1633122368890,1.05905437,3293.7,3293.4,0.183]
[1633122369493,1.05905437,3293.7,3293.5,0.06970544]
[1633122370089,0.003,3294.0,3293.5,0.06970544]
[1633122370289,0.003,3294.0,3293.5,4.62298544]
[1633122371290,0.003,3294.0,3293.6,0.00086703]
[1633122371891,0.21985447,3294.0,3293.6,0.00086703]
[1633122373091,0.21985447,3294.0,3293.4,0.02486703]
[1633122373291,0.21985447,3294.0,3293.6,4.55317]
[1633122373495,0.21985447,3294.0,3293.7,2.7316416]
[1633122373692,0.88872604,3293.8,3293.7,2.7316416]
[1633122374094,0.21985447,3294.0,3293.7,3.69735539]
[1633122374295,0.21985447,3294.0,3293.8,4.55263]
[1633122374897,0.21985447,3294.0,3293.9,0.06957318]
[1633122374898,0.003,3294.0,3293.9,0.06957318]
[1633122377302,0.21989116,3294.0,3293.8,7.58756]
[1633122377500,0.21989116,3294.0,3293.7,8.8015016]
[1633122377901,0.21989116,3294.0,3293.4,0.02486703]
[1633122378497,1.00015374,3293.6,3293.4,0.02486703]
[1633122378699,1.11955816,3293.5,3293.4,0.02486703]
[1633122379300,0.21989116,3294.0,3293.4,0.02486703]
[1633122379506,0.21989116,3294.0,3293.4,4.57822703]
[1633122380300,0.003,3294.0,3293.5,2.80146691]
[1633122380701,0.003,3294.0,3293.5,3.73074206]
[1633122381500,0.003,3294.0,3293.7,4.55278]
[1633122381701,1.01563231,3293.9,3293.7,4.55278]
[1633122381901,1.01563231,3293.9,3293.5,2.80146691]
[1633122382299,1.01563231,3293.9,3293.5,0.06963931]
[1633122382902,0.2168182,3293.8,3293.4,0.02486703]
[1633122383407,0.003,3294.0,3293.9,0.245396]
[1633122383605,0.003,3294.0,3293.9,6.389486]
[1633122384004,0.003,3294.0,3293.9,6.415119]
[1633122384404,0.003,3294.0,3293.9,0.428396]
[1633122384603,0.003,3294.0,3293.9,0.245396]
[1633122385007,0.003,3294.5,3293.9,0.245396]
[1633122385802,0.003,3294.5,3294.2,4.55225]
[1633122386006,0.89186717,3294.3,3294.0,0.17789964]
[1633122386408,0.89186717,3294.3,3293.2,3.03484]
[1633122386409,2.11213813,3293.6,3293.4,0.003]
[1633122386605,3.51763813,3293.6,3293.4,0.003]
[1633122386806,3.51763813,3293.6,3292.8,0.006]
[1633122387005,0.90767057,3293.1,3292.8,0.006]
[1633122387205,2.43931656,3293.2,3292.8,0.006]
[1633122387404,1.00187535,3293.3,3292.8,0.006]
[1633122388204,1.90045311,3293.3,3292.8,0.006]
[1633122388404,0.19720064,3293.2,3292.8,0.006]
[1633122391204,1.90045311,3293.3,3292.9,0.08933009]
[1633122391606,0.89857776,3293.3,3293.0,0.006]
[1633122392404,0.89857776,3293.3,3293.1,0.00087053]
[1633122392809,0.89857776,3293.3,3293.2,0.003]
[1633122393608,1.09582729,3293.3,3293.2,0.003]
[1633122395810,0.19724953,3293.3,3293.2,0.003]
[1633122396609,2.11213813,3293.6,3293.2,0.09226394]
[1633122396810,2.11213813,3293.6,3293.3,1.13703243]
[1633122397010,2.11213813,3293.6,3293.4,0.76002677]
[1633122397210,2.11213813,3293.6,3293.4,0.76302677]
[1633122397410,11.9611,3294.8,3293.4,0.76302677]
[1633122397411,0.183,3295.4,3293.6,1.42503551]
[1633122397610,0.183,3295.4,3293.7,0.183]
[1633122397810,0.99087194,3294.4,3293.8,1.13817861]
[1633122398012,0.183,3295.4,3294.0,4.55168]
[1633122398013,1.72167997,3295.4,3294.0,4.55168]
[1633122398409,0.85168167,3294.5,3294.0,4.55168]
[1633122398811,0.003,3294.5,3294.0,7.58612]
[1633122399012,0.003,3294.5,3294.2,4.5517]
[1633122399311,0.19749334,3294.4,3294.2,4.5517]
[1633122399511,0.19749334,3294.4,3294.2,7.2827147]
[1633122399713,0.003,3294.5,3294.2,7.2827147]
[1633122399912,0.003,3295.5,3294.4,0.72389647]
[1633122400518,0.003,3295.5,3294.5,1.05192617]
[1633122400715,0.97454973,3295.2,3294.5,1.39276908]
[1633122400915,0.97454973,3295.2,3294.9,0.87649586]
[1633122401315,0.83149027,3295.5,3294.9,0.87649586]
[1633122401575,0.83149027,3295.5,3294.9,5.42722586]
[1633122401714,0.83149027,3295.5,3294.9,5.37722586]
[1633122401914,0.003,3295.5,3294.9,5.37722586]
[1633122402116,0.003,3295.5,3294.9,5.56467449]
[1633122402315,1.19124973,3295.4,3294.9,5.56467449]
[1633122402715,0.003,3295.5,3294.9,5.56619715]
[1633122403718,0.003,3295.5,3294.9,9.14122806]
[1633122403920,0.003,3295.5,3295.2,3.033]
[1633122404118,0.003,3295.5,3295.3,2.20965399]
[1633122404318,2.46,3295.9,3295.4,0.183]
[1633122404719,2.46,3295.9,3295.8,0.83449318]
[1633122405118,0.00171487,3296.1,3295.7,4.92679509]
[1633122405322,0.00171487,3296.1,3295.8,3.59233017]
[1633122405523,0.006,3296.8,3296.7,3.8756717]
[1633122406120,0.81731714,3296.8,3296.7,3.8756717]
[1633122406520,1.84714875,3296.8,3296.7,3.8756717]
[1633122406921,1.22634323,3296.7,3296.0,0.003]
[1633122407120,0.81951429,3296.3,3296.0,0.003]
[1633122407319,0.81951429,3296.3,3295.8,0.003]
[1633122407588,0.81951429,3296.3,3296.1,0.18703578]
[1633122407719,0.90762692,3296.2,3296.1,0.18703578]
[1633122407919,0.81951429,3296.3,3296.1,0.18703578]
[1633122409320,0.76951429,3296.3,3296.1,0.18703578]
[1633122409522,6.69254283,3296.2,3296.1,0.18703578]
[1633122409720,2.09254283,3296.2,3296.1,0.18703578]
[1633122409921,4.7025951,3296.2,3295.0,0.009]
[1633122410122,1.92740948,3295.9,3295.0,0.009]
[1633122410321,2.08944011,3295.8,3295.0,0.009]
[1633122410584,1.33505227,3296.2,3295.0,0.009]
[1633122410927,1.06419526,3295.5,3295.0,0.009]
[1633122411121,1.87805544,3295.5,3295.0,4.56014]
[1633122411322,1.87805544,3295.5,3295.0,0.009]
[1633122411521,1.87805544,3295.5,3295.1,0.006]
[1633122411921,1.87805544,3295.5,3295.0,0.009]
[1633122412920,1.87805544,3295.5,3295.1,0.09381511]
[1633122413121,1.87805544,3295.5,3295.1,0.09528415]
[1633122413323,1.87805544,3295.5,3295.2,0.006]
[1633122414120,1.06419526,3295.5,3295.2,0.006]
[1633122415421,0.183,3295.4,3295.2,0.006]
[1633122415724,1.16467972,3295.4,3295.2,0.006]
[1633122416321,6.5425207,3295.3,3295.2,0.006]
[1633122416520,0.3755207,3295.3,3295.2,0.006]
[1633122418322,0.183,3295.3,3295.2,0.006]
[1633122418523,0.183,3295.3,3295.2,0.09983162]
[1633122421527,4.55187,3295.9,3295.2,0.09983162]
[1633122421528,3.33084,3296.5,3295.2,0.14831562]
[1633122421728,0.1136,3296.5,3295.2,0.14831562]
[1633122421927,33.9154,3296.6,3295.3,0.189]
[1633122422328,33.9154,3296.6,3295.7,0.78700092]
[1633122422329,0.87215598,3296.3,3295.7,0.78700092]
[1633122422592,22.0013,3296.6,3295.7,0.78700092]
[1633122422830,11.0184,3296.6,3295.8,0.003]
[1633122423427,10.9684,3296.6,3295.8,0.003]
[1633122423636,10.9684,3296.6,3295.9,0.00132332]
[1633122423637,1.17217962,3296.1,3295.9,0.00132332]
[1633122423830,10.9684,3296.6,3296.1,4.54974]
[1633122424028,1.22634323,3296.7,3296.1,7.2793998]
[1633122424227,1.22634323,3296.7,3296.1,2.7296598]
[1633122424828,0.87785636,3296.5,3296.1,2.7296598]
[1633122425227,0.87785636,3296.5,3296.3,4.54944]
[1633122425828,0.87785636,3296.5,3296.1,2.7296598]
[1633122426432,0.87785636,3296.5,3296.3,4.54955]
[1633122426829,1.7074528,3296.5,3296.3,4.54955]
[1633122427529,0.19278867,3296.4,3296.3,4.54955]
[1633122429330,0.87785636,3296.5,3296.3,4.64301836]
[1633122430331,0.87785636,3296.5,3296.3,0.09346836]
[1633122432936,0.19278881,3296.4,3296.0,0.003]
[1633122433337,0.78148549,3296.2,3296.0,0.003]
[1633122434242,0.78148549,3296.2,3296.1,0.00134619]
[1633122434437,0.96448549,3296.2,3296.1,0.00134619]
[1633122434838,0.96448549,3296.2,3296.1,0.09488058]
[1633122435237,5.51587549,3296.2,3296.1,0.09488058]
[1633122436242,7.44488058,3296.1,3295.0,0.009]
[1633122436439,3.03505,3295.5,3295.0,0.009]
[1633122436640,11.5847,3295.8,3294.9,0.009]
[1633122436843,23.0238,3295.8,3294.2,2.731361]
[1633122437040,23.0238,3295.8,3294.3,0.009]
[1633122437238,1.08899509,3294.6,3294.5,0.98194121]
[1633122437639,0.90475147,3295.1,3294.5,0.99394121]
[1633122438038,0.90475147,3295.1,3294.6,0.009]
[1633122438441,1.14394253,3295.1,3294.6,0.009]
[1633122438838,1.15375815,3294.8,3294.6,0.009]
[1633122439239,0.23919106,3295.1,3294.6,4.561]
[1633122439640,0.23919106,3295.1,3294.7,0.009]
[1633122440040,0.23919106,3295.1,3294.6,0.009]
[1633122440240,1.18651296,3294.9,3294.6,0.009]
[1633122440441,1.18651296,3294.9,3294.7,0.04718006]
[1633122440842,1.18651296,3294.9,3294.8,0.009]
[1633122443444,0.183,3295.3,3294.8,0.009]
[1633122443707,0.183,3295.3,3294.8,4.56074]
[1633122443908,0.23922773,3295.2,3294.8,4.56074]
[1633122444106,0.23922773,3295.2,3294.9,0.009]
[1633122444107,0.18922773,3295.2,3294.9,0.009]
[1633122444711,0.94200578,3295.0,3294.9,0.009]
[1633122445310,0.18922773,3295.2,3294.9,0.009]
[1633122445908,0.183,3295.3,3295.0,0.0721305]
[1633122446310,1.00753074,3295.2,3295.1,0.006]
[1633122446912,0.183,3295.3,3295.1,0.8293162]
[1633122447320,0.09488058,3296.1,3295.2,0.006]
[1633122447914,0.09488058,3296.1,3295.7,0.763082]
[1633122447915,0.93181914,3296.0,3295.7,0.763082]
[1633122448316,0.09488058,3296.1,3295.8,4.55322]
[1633122448715,0.09488058,3296.1,3295.9,0.003]
[1633122449317,0.09488058,3296.1,3295.8,0.003]
[1633122449513,0.21445911,3296.0,3295.9,1.14700268]
[1633122449713,0.21445911,3296.0,3295.9,7.21303268]
[1633122449918,0.21445911,3296.0,3295.9,7.21603268]
[1633122451317,0.09488058,3296.1,3295.9,7.21603268]
[1633122451518,0.09488058,3296.1,3295.9,7.28786592]
[1633122451716,0.09488058,3296.1,3296.0,0.003]
[1633122453316,0.09488058,3296.1,3296.0,4.55253]
[1633122453719,0.09488058,3296.1,3296.0,0.003]
[1633122454919,0.30935199,3296.1,3296.0,0.003]
[1633122455320,0.30935199,3296.1,3296.0,0.00420427]
[1633122456420,1.20736304,3295.9,3295.4,0.003]
[1633122456722,5.7269895,3295.6,3295.3,0.003]
[1633122457019,5.7269895,3295.6,3294.8,0.006]
[1633122457418,5.7269895,3295.6,3294.7,0.72882875]
[1633122457419,0.93879709,3295.3,3294.7,0.72882875]
[1633122457623,0.93879709,3295.3,3294.4,0.003]
[1633122457624,0.93879709,3295.3,3294.6,4.5519]
[1633122458218,0.93879709,3295.3,3294.4,0.003]
[1633122458623,2.47233643,3295.5,3294.4,0.003]
[1633122458819,0.183,3295.4,3294.4,0.003]
[1633122459823,0.75813935,3295.1,3294.5,0.89670421]
[1633122460226,0.75813935,3295.1,3294.5,0.89970421]
[1633122460421,0.9723188,3295.1,3294.5,5.45168421]
[1633122462425,0.75813935,3295.1,3294.6,0.07219658]
[1633122463225,0.75813935,3295.1,3294.6,4.62411658]
[1633122465829,0.97233111,3295.1,3294.7,0.00124704]
[1633122466030,0.21419176,3295.1,3294.7,0.00124704]
[1633122467230,0.21419176,3295.1,3294.7,4.55295704]
[1633122467631,0.21419176,3295.1,3294.7,7.28386784]
[1633122467831,0.8577678,3295.3,3294.8,0.07216354]
[1633122468833,0.99191554,3295.2,3294.8,0.07216354]
[1633122469032,0.8577678,3295.3,3294.8,0.07216354]
[1633122469233,5.4099778,3295.3,3294.8,0.07216354]
[1633122469432,8.4449278,3295.3,3294.8,0.07216354]
[1633122470233,0.90848409,3295.2,3294.8,0.07216354]
[1633122470834,8.4449278,3295.3,3294.8,0.07216354]
[1633122471435,8.4449278,3295.3,3294.7,0.00124704]
[1633122471436,0.21422843,3295.2,3294.7,0.00124704]
[1633122471637,0.21422843,3295.2,3294.7,0.3584135]
[1633122472035,0.21422843,3295.2,3294.8,0.35718096]
[1633122472236,0.21422843,3295.2,3294.7,0.00124704]
[1633122472838,1.00402686,3294.8,3294.6,0.3084329]
[1633122473037,1.00402686,3294.8,3294.5,0.003]
[1633122473241,0.21422843,3295.2,3294.6,4.5519]
[1633122473242,2.66979659,3295.2,3294.6,4.5519]
[1633122473438,0.183,3295.4,3294.6,4.62414615]
[1633122473638,0.183,3295.4,3294.8,2.731002]
[1633122474239,0.87561081,3294.9,3294.8,2.731002]
[1633122475039,0.183,3295.4,3294.8,2.731002]
[1633122476040,0.94376726,3295.4,3294.8,3.67901261]
[1633122476239,1.88784464,3295.4,3294.9,0.00107776]
[1633122476840,0.21425291,3295.3,3294.9,0.00107776]
[1633122478843,0.94376726,3295.4,3294.9,0.00107776]
[1633122479043,0.94376726,3295.4,3295.0,0.07211398]
[1633122482046,1.97728431,3295.4,3295.0,0.07211398]
[1633122482445,0.21426523,3295.3,3294.9,0.00107776]
[1633122482648,0.21426523,3295.3,3294.9,0.9828213]
[1633122483445,0.21426523,3295.3,3294.9,4.55264776]
[1633122483649,0.21426523,3295.3,3295.0,1.17626872]
[1633122483847,0.183,3295.2,3295.0,1.17626872]
[1633122484045,0.183,3295.2,3294.9,0.00107776]
[1633122484647,0.183,3295.2,3295.1,0.07211398]
[1633122486647,0.183,3295.2,3295.1,0.07318399]
[1633122488048,0.39725319,3295.2,3295.1,0.00107001]
[1633122489850,0.183,3295.2,3295.1,0.07316747]
[1633122491250,1.27315333,3295.2,3295.1,0.07316747]
[1633122492714,1.27315333,3295.2,3295.1,0.02316747]
[1633122493114,0.183,3295.2,3295.1,0.02316747]
[1633122493314,0.183,3295.2,3295.0,4.55162]
[1633122493517,0.42171833,3295.2,3295.0,4.55162]
[1633122495318,0.183,3295.2,3295.0,4.55162]
[1633122495517,0.183,3295.2,3295.1,0.04764899]
[1633122497120,0.183,3295.2,3295.1,0.0486001]
[1633122498922,0.42171847,3295.2,3295.1,0.00095111]
[1633122500926,0.183,3295.2,3295.1,0.04858358]
[1633122503326,0.183,3295.2,3295.1,0.40604283]
[1633122503526,0.183,3295.2,3295.1,0.40604333]
[1633122504326,0.42171861,3295.2,3295.1,0.35841086]
[1633122504531,0.42171861,3295.2,3295.1,0.00095111]
[1633122506329,0.183,3295.2,3295.1,0.00095111]
[1633122506529,0.183,3295.2,3295.1,0.04858358]
[1633122506728,0.183,3295.2,3295.1,0.40615125]
[1633122507133,0.183,3295.2,3295.1,0.35615125]
[1633122507329,0.183,3295.2,3294.8,4.55192]
[1633122507729,0.183,3295.2,3294.9,0.0008685]
[1633122509930,0.26251064,3295.1,3294.9,0.0008685]
[1633122510130,0.183,3295.0,3294.9,0.0008685]
[1633122512134,0.183,3295.0,3294.9,0.02475081]
[1633122512935,0.183,3295.0,3294.9,1.2007399]
[1633122513335,0.183,3295.0,3294.9,0.02475081]
[1633122514533,0.183,3295.0,3294.9,1.2333188]
[1633122514735,0.183,3295.0,3294.9,0.02475081]
[1633122515335,0.183,3295.0,3294.9,0.0008685]
[1633122515536,0.44548643,3295.0,3294.9,0.0008685]
[1633122517335,0.183,3295.0,3294.9,0.0008685]
[1633122517540,0.183,3295.0,3294.9,0.02475081]
[1633122519338,0.183,3295.0,3294.5,0.003]
[1633122519339,0.3906517,3294.8,3294.5,0.003]
[1633122519539,2.59678118,3294.7,3294.5,0.003]
[1633122519740,4.75,3294.7,3294.3,0.003]
[1633122519938,1.20185599,3294.4,3293.6,0.006]
[1633122520141,0.183,3294.3,3293.6,0.006]
[1633122520539,4.55405,3294.0,3293.6,0.006]
[1633122520739,0.183,3293.9,3293.5,0.009]
[1633122521139,2.35358196,3293.9,3293.5,0.009]
[1633122521338,2.48797724,3293.8,3293.5,0.009]
[1633122521536,0.183,3293.7,3293.5,0.009]
[1633122521736,0.183,3293.7,3293.4,2.319]
[1633122522337,0.183,3293.7,3293.1,3.3111565]
[1633122522538,2.62508841,3293.7,3293.1,3.3111565]
[1633122522937,2.62508841,3293.7,3293.2,0.02178367]
[1633122524141,2.62508841,3293.7,3293.1,2.46]
[1633122524341,2.62508841,3293.7,3293.3,2.46]
[1633122524941,4.73767,3293.7,3293.3,2.46]
[1633122525142,4.73767,3293.7,3293.0,0.003]
[1633122525143,0.183,3293.7,3293.0,0.003]
[1633122525345,0.71711796,3293.3,3293.0,0.003]
[1633122525543,0.183,3293.2,3293.0,0.003]
[1633122525945,0.183,3293.2,3293.0,4.55735]
[1633122526143,0.46788116,3293.2,3293.0,4.55735]
[1633122526343,0.46788116,3293.2,3293.0,0.003]
[1633122528444,0.183,3293.2,3293.0,0.003]
[1633122528845,0.133,3293.2,3293.1,0.00105615]
[1633122529647,0.183,3293.6,3293.1,1.29505615]
[1633122529946,0.183,3293.6,3293.4,2.7863053]
[1633122531345,0.46797879,3293.6,3293.5,4.55327]
[1633122532946,0.46797879,3293.6,3293.5,5.56300073]
[1633122533947,0.183,3293.6,3293.5,5.56300073]
[1633122534745,0.183,3293.6,3293.5,6.85700073]
[1633122535048,0.003,3294.0,3293.5,8.35817073]
[1633122535247,0.003,3294.0,3293.9,0.06792]
[1633122535851,0.003,3294.0,3293.9,1.36192]
[1633122536248,0.003,3294.0,3293.9,6.81953452]
[1633122536648,0.28808857,3294.0,3293.9,6.81953452]
[1633122537050,0.28808857,3294.0,3293.9,7.17669672]
[1633122539250,0.003,3294.0,3293.9,7.17669672]
[1633122542052,0.28808871,3294.0,3293.9,7.17669672]
[1633122543655,0.28808871,3294.0,3293.9,4.9094922]
[1633122544656,0.003,3294.0,3293.9,4.9094922]
[1633122547457,0.28808885,3294.0,3293.9,4.9094922]
[1633122547856,0.27750985,3294.0,3293.9,4.9094922]
[1633122550460,0.003,3294.5,3293.9,4.9094922]
[1633122550661,0.003,3294.5,3294.0,0.35719524]
[1633122550861,0.003,3294.5,3294.2,4.55247]
[1633122551064,0.96027604,3294.5,3294.3,0.35718305]
[1633122551265,0.96027604,3294.5,3294.4,0.35718977]
[1633122551460,0.96027604,3294.5,3294.4,0.35719512]
[1633122551728,0.96027604,3294.5,3294.4,0.35719016]
[1633122551928,0.96027604,3294.5,3294.2,0.35719468]
[1633122552128,0.96027604,3294.5,3294.3,0.3572011]
[1633122552327,0.96027604,3294.5,3294.4,0.35721507]
[1633122552629,0.96027604,3294.5,3293.7,2.7314]
[1633122552630,0.96027604,3294.5,3293.9,0.35725197]
[1633122552828,0.96027604,3294.5,3293.7,2.7314]
[1633122552829,0.96027604,3294.5,3294.0,0.35726116]
[1633122553027,0.28134821,3294.4,3294.1,0.3572568]
[1633122553228,0.28134821,3294.4,3294.2,0.3572628]
[1633122553427,0.28134821,3294.4,3294.3,0.35730944]
[1633122553628,0.28134821,3294.4,3293.8,0.35726451]
[1633122553834,0.28134821,3294.4,3294.1,4.55274]
[1633122554029,0.28134821,3294.4,3294.2,0.3572471]
[1633122554428,0.28134821,3294.4,3294.3,0.35723708]
[1633122554729,0.28134821,3294.4,3294.3,0.35722017]
[1633122554929,0.28134821,3294.4,3294.3,0.85403436]
[1633122555131,0.28134821,3294.4,3294.3,1.21124418]
[1633122555729,0.003,3294.5,3294.3,1.21124418]
[1633122555929,0.003,3294.5,3294.4,0.35716151]
[1633122556533,0.003,3294.5,3294.2,0.35717656]
[1633122556730,0.003,3294.5,3294.4,4.55195]
[1633122556932,0.003,3294.5,3294.4,4.90912334]
[1633122557331,0.5266517,3294.8,3294.4,5.8512142]
[1633122557529,0.5266517,3294.8,3294.5,0.35718464]
[1633122557729,0.5266517,3294.8,3294.6,4.55209]
[1633122557933,0.5266517,3294.8,3294.7,0.35718226]
[1633122558130,0.5266517,3294.8,3294.0,0.003]
[1633122558330,0.80814619,3294.8,3294.0,0.003]
[1633122558531,0.80814619,3294.8,3293.6,0.36023957]
[1633122558730,0.80814619,3294.8,3294.2,4.55258]
[1633122558934,0.80814619,3294.8,3294.4,0.96152361]
[1633122559130,0.80814619,3294.8,3294.5,0.35726543]
[1633122560129,0.80814619,3294.8,3294.6,0.00081805]
[1633122560330,0.80814619,3294.8,3294.6,4.55274805]
[1633122560532,0.80814619,3294.8,3294.7,0.35726629]
[1633122560732,0.80814619,3294.8,3294.7,0.35725433]
[1633122560932,0.80814619,3294.8,3294.6,0.00081805]
[1633122561233,0.5266517,3294.8,3294.6,0.00081805]
[1633122561631,0.5266517,3294.8,3294.5,0.20806154]
[1633122562031,0.5266517,3294.8,3294.6,3.0344]
[1633122562232,0.5266517,3294.8,3294.7,4.55196]
[1633122563632,0.80814632,3294.8,3294.7,4.55196]
[1633122566834,0.5266517,3294.8,3294.7,4.55196]
[1633122568835,0.80814646,3294.8,3294.7,4.55196]
[1633122569637,0.75814646,3294.8,3294.7,4.55196]
[1633122569837,1.61124262,3294.8,3294.7,4.55196]
[1633122570040,1.61124262,3294.8,3294.5,0.92217413]
[1633122570238,1.61124262,3294.8,3294.1,3.0347]
[1633122571039,1.61124262,3294.8,3294.1,3.83705782]
[1633122572241,1.61124262,3294.8,3294.4,4.55213]
[1633122572442,0.4766517,3294.8,3294.4,4.55213]
[1633122574241,0.75811006,3294.8,3294.4,5.64151664]
[1633122574643,0.75811006,3294.8,3294.4,4.55213]
[1633122575843,0.75811006,3294.8,3294.5,1.16939096]
[1633122576044,0.75811006,3294.8,3294.3,9.151618]
[1633122576444,0.75811006,3294.8,3294.6,4.55133]
[1633122577646,0.4766517,3294.8,3294.6,4.55133]
[1633122578447,0.4766517,3294.8,3294.4,0.9226267]
[1633122578646,0.4766517,3294.8,3294.0,0.003]
[1633122579047,0.4766517,3294.8,3293.7,0.003]
[1633122579247,0.4766517,3294.8,3293.5,0.006]
[1633122579447,1.00351089,3294.1,3293.5,6.92164505]
[1633122579846,1.00351089,3294.1,3293.6,0.003]
[1633122580646,1.00351089,3294.1,3293.8,1.06627695]
[1633122580848,1.00351089,3294.1,3293.6,0.003]
[1633122581051,1.00351089,3294.1,3293.9,0.003]
[1633122581247,1.00351089,3294.1,3293.9,4.55666233]
[1633122581647,1.00351089,3294.1,3294.0,0.003]
[1633122583447,1.18651089,3294.1,3294.0,0.003]
[1633122583651,6.6373159,3294.1,3294.0,0.003]
[1633122584852,6.91862838,3294.1,3294.0,0.003]
[1633122588448,6.6373159,3294.1,3294.0,0.003]
[1633122589851,7.297,3294.0,3293.9,0.00084233]
[1633122590052,1.18,3294.0,3293.9,0.00084233]
[1633122592051,2.11267299,3294.0,3293.9,0.00084233]
[1633122592450,1.18,3294.0,3293.9,0.00084233]
[1633122593653,2.04603418,3294.0,3293.9,0.00084233]
[1633122594853,1.18,3294.0,3293.9,0.00084233]
[1633122595055,3.55850346,3294.0,3293.9,0.00084233]
[1633122595259,1.18,3294.0,3293.9,0.00084233]
[1633122595655,1.46130058,3294.0,3293.9,0.00084233]
[1633122596055,2.42862171,3294.0,3293.9,0.00084233]
[1633122596657,7.18503244,3294.0,3293.9,0.00084233]
[1633122596856,11.1,3293.9,3293.0,0.34705466]
[1633122597058,4.590974,3293.5,3293.0,0.29955466]
[1633122597255,4.590974,3293.5,3292.6,2.43546]
[1633122597256,4.95,3293.3,3292.6,2.43546]
[1633122597456,3.03698,3293.1,3292.6,2.43546]
[1633122597658,0.183,3293.0,3292.6,2.43546]
[1633122597861,2.55555408,3293.0,3292.6,2.43546]
[1633122598057,4.73847,3293.0,3292.6,2.43546]
[1633122598257,2.37618485,3292.9,3292.8,2.46]
[1633122598457,1.17599784,3292.9,3292.8,2.46]
[1633122599157,9.73248903,3292.9,3292.8,2.46]
[1633122599555,7.25060784,3292.9,3292.8,2.46]
[1633122600559,7.25060784,3292.9,3292.8,5.66302462]
[1633122600560,0.183,3292.9,3292.8,5.66302462]
[1633122600762,7.60724,3293.5,3292.8,3.833913]
[1633122600763,0.003,3293.5,3292.8,3.833913]
[1633122600960,0.003,3293.5,3293.4,0.063148]